[Event "Titled Tuesday Blitz January 25 2022"]
[White "Belenkaya, Dina"]
[Black "Aditya Mittal"]
[WhiteFideId "24142654"]
[BlackFideId "35042025"]
[WhiteElo "2196"]
[BlackElo "2287"]
[Result "0-1"]
[Round "07"]
[TimeControl "180+1"]
[Date "2022.01.26"]
[WhiteClock "0:00:02"]
[BlackClock "0:01:14"]

1. Nf3 {[%clk 0:03:00]}  d5 {[%clk 0:02:59]} 2. g3 {[%clk 0:02:59]}  Nf6 {[%clk 0:03:00]} 3. Bg2 {[%clk 0:02:59]}  Bg4 {[%clk 0:03:00]} 4. O-O {[%clk 0:02:52]}  Nbd7 {[%clk 0:03:00]} 5. d3 {[%clk 0:02:49]}  e5 {[%clk 0:03:00]} 6. Nbd2 {[%clk 0:02:46]}  Be7 {[%clk 0:02:58]} 7. c4 {[%clk 0:02:45]}  c6 {[%clk 0:02:53]} 8. h3 {[%clk 0:02:40]}  Bh5 {[%clk 0:02:52]} 9. Qb3 {[%clk 0:02:33]}  Qb6 {[%clk 0:02:51]} 10. cxd5 {[%clk 0:02:30]}  Qxb3 {[%clk 0:02:46]} 11. Nxb3 {[%clk 0:02:29]}  Nxd5 {[%clk 0:02:45]} 12. Bd2 {[%clk 0:02:24]}  f6 {[%clk 0:02:45]} 13. Na5 {[%clk 0:02:20]}  Rb8 {[%clk 0:02:44]} 14. Rac1 {[%clk 0:02:14]}  Bf7 {[%clk 0:02:43]} 15. d4 {[%clk 0:02:13]}  e4 {[%clk 0:02:40]} 16. Ne1 {[%clk 0:02:12]}  f5 {[%clk 0:02:40]} 17. a3 {[%clk 0:02:06]}  Be6 {[%clk 0:02:38]} 18. b4 {[%clk 0:02:06]}  O-O {[%clk 0:02:35]} 19. Nc2 {[%clk 0:02:03]}  Bf6 {[%clk 0:02:25]} 20. f3 {[%clk 0:02:00]}  e3 {[%clk 0:02:21]} 21. Be1 {[%clk 0:01:43]}  f4 {[%clk 0:02:22]} 22. gxf4 {[%clk 0:01:42]}  Nxf4 {[%clk 0:02:20]} 23. Bg3 {[%clk 0:01:31]}  Nxe2+ {[%clk 0:02:20]} 24. Kh2 {[%clk 0:01:29]}  Nxc1 {[%clk 0:02:01]} 25. Bxb8 {[%clk 0:01:28]}  Nd3 {[%clk 0:01:46]} 26. Bg3 {[%clk 0:01:24]}  e2 {[%clk 0:01:45]} 27. Ra1 {[%clk 0:01:18]}  Bd5 {[%clk 0:01:43]} 28. Nxb7 {[%clk 0:01:14]}  Bb3 {[%clk 0:01:38]} 29. Ne1 {[%clk 0:01:12]}  Bxd4 {[%clk 0:01:35]} 30. Rb1 {[%clk 0:01:10]}  Ba2 {[%clk 0:01:35]} 31. Nxd3 {[%clk 0:00:55]}  Bxb1 {[%clk 0:01:35]} 32. Ne1 {[%clk 0:00:56]}  Ne5 {[%clk 0:01:36]} 33. Nd6 {[%clk 0:00:53]}  Nd3 {[%clk 0:01:33]} 34. Nc4 {[%clk 0:00:37]}  Re8 {[%clk 0:01:14]} 35. Nd2 {[%clk 0:00:29]}  Be5 {[%clk 0:01:14]} 36. f4 {[%clk 0:00:03]}  Bxf4 {[%clk 0:01:14]} 37. Bxf4 {[%clk 0:00:02]}  Nxe1 {[%clk 0:01:14]} 0-1


[Site "https://www.chess.com"]

[Event "Titled Tuesday Blitz January 25 2022"]
[White "Belyakov, Bogdan"]
[Black "Ozates, Tuna"]
[WhiteFideId "24104795"]
[BlackFideId "6354521"]
[WhiteElo "2407"]
[BlackElo "1872"]
[Result "1/2-1/2"]
[Round "07"]
[TimeControl "180+1"]
[Date "2022.01.26"]
[WhiteClock "0:00:23"]
[BlackClock "0:00:05"]

1. e4 {[%clk 0:02:56]}  c5 {[%clk 0:02:57]} 2. c3 {[%clk 0:02:52]}  d5 {[%clk 0:02:53]} 3. exd5 {[%clk 0:02:53]}  Nf6 {[%clk 0:02:47]} 4. d4 {[%clk 0:02:52]}  cxd4 {[%clk 0:02:46]} 5. Qxd4 {[%clk 0:02:51]}  Qxd5 {[%clk 0:02:44]} 6. Nf3 {[%clk 0:02:46]}  Nc6 {[%clk 0:02:41]} 7. Qxd5 {[%clk 0:02:46]}  Nxd5 {[%clk 0:02:42]} 8. Bc4 {[%clk 0:02:46]}  Nb6 {[%clk 0:02:32]} 9. Be2 {[%clk 0:02:45]}  e5 {[%clk 0:02:32]} 10. O-O {[%clk 0:02:44]}  f6 {[%clk 0:02:30]} 11. a3 {[%clk 0:02:41]}  Bd6 {[%clk 0:02:29]} 12. Nbd2 {[%clk 0:02:40]}  O-O {[%clk 0:02:29]} 13. b4 {[%clk 0:02:40]}  Bf5 {[%clk 0:02:22]} 14. Bb2 {[%clk 0:02:39]}  Rac8 {[%clk 0:02:11]} 15. c4 {[%clk 0:02:39]}  Be7 {[%clk 0:02:10]} 16. c5 {[%clk 0:02:38]}  Nd5 {[%clk 0:02:05]} 17. Bc4 {[%clk 0:02:37]}  Be6 {[%clk 0:02:06]} 18. Rfe1 {[%clk 0:02:35]}  Nf4 {[%clk 0:02:03]} 19. Bf1 {[%clk 0:02:32]}  a6 {[%clk 0:01:57]} 20. Nc4 {[%clk 0:02:23]}  Rcd8 {[%clk 0:01:52]} 21. Bc3 {[%clk 0:02:17]}  Kf7 {[%clk 0:01:50]} 22. h4 {[%clk 0:02:10]}  Nd3 {[%clk 0:01:48]} 23. Re3 {[%clk 0:02:05]}  Bxc4 {[%clk 0:01:45]} 24. Rd1 {[%clk 0:01:58]}  Nb2 {[%clk 0:00:33]} 25. Rxd8 {[%clk 0:01:56]}  Rxd8 {[%clk 0:00:33]} 26. Bxb2 {[%clk 0:01:56]}  Rd1 {[%clk 0:00:33]} 27. Re1 {[%clk 0:01:56]}  Rxe1 {[%clk 0:00:32]} 28. Nxe1 {[%clk 0:01:56]}  Bxf1 {[%clk 0:00:30]} 29. Kxf1 {[%clk 0:01:57]}  Ke6 {[%clk 0:00:29]} 30. Nc2 {[%clk 0:01:54]}  f5 {[%clk 0:00:26]} 31. Ke2 {[%clk 0:01:54]}  f4 {[%clk 0:00:25]} 32. f3 {[%clk 0:01:52]}  Bxh4 {[%clk 0:00:25]} 33. Kd3 {[%clk 0:01:50]}  Kd5 {[%clk 0:00:23]} 34. a4 {[%clk 0:01:49]}  Bf6 {[%clk 0:00:19]} 35. Ba3 {[%clk 0:01:47]}  g5 {[%clk 0:00:16]} 36. b5 {[%clk 0:01:47]}  axb5 {[%clk 0:00:16]} 37. axb5 {[%clk 0:01:48]}  Na5 {[%clk 0:00:16]} 38. c6 {[%clk 0:01:37]}  bxc6 {[%clk 0:00:15]} 39. Nb4+ {[%clk 0:01:38]}  Ke6 {[%clk 0:00:14]} 40. Nxc6 {[%clk 0:01:33]}  Nxc6 {[%clk 0:00:13]} 41. bxc6 {[%clk 0:01:34]}  Bd8 {[%clk 0:00:10]} 42. Ke4 {[%clk 0:01:34]}  Bc7 {[%clk 0:00:10]} 43. Bb4 {[%clk 0:01:06]}  h5 {[%clk 0:00:09]} 44. Bc5 {[%clk 0:01:04]}  g4 {[%clk 0:00:09]} 45. fxg4 {[%clk 0:01:04]}  hxg4 {[%clk 0:00:09]} 46. Bb4 {[%clk 0:01:04]}  Bd6 {[%clk 0:00:08]} 47. Ba5 {[%clk 0:01:02]}  Ke7 {[%clk 0:00:05]} 48. Bb6 {[%clk 0:00:54]}  Ke6 {[%clk 0:00:03]} 49. Ba5 {[%clk 0:00:53]}  Ke7 {[%clk 0:00:03]} 50. Bb6 {[%clk 0:00:53]}  Ke6 {[%clk 0:00:04]} 51. Bd8 {[%clk 0:00:42]}  f3 {[%clk 0:00:03]} 52. gxf3 {[%clk 0:00:40]}  g3 {[%clk 0:00:04]} 53. Bb6 {[%clk 0:00:38]}  g2 {[%clk 0:00:03]} 54. Bg1 {[%clk 0:00:35]}  Bc7 {[%clk 0:00:02]} 55. Bh2 {[%clk 0:00:32]}  Kd6 {[%clk 0:00:02]} 56. f4 {[%clk 0:00:23]}  exf4 {[%clk 0:00:03]} 57. Kf3 {[%clk 0:00:21]}  Kxc6 {[%clk 0:00:04]} 58. Kxg2 {[%clk 0:00:22]}  Kd5 {[%clk 0:00:04]} 59. Kf3 {[%clk 0:00:22]}  Ke5 {[%clk 0:00:05]} 60. Bxf4+ {[%clk 0:00:23]} 1/2-1/2


[Site "https://www.chess.com"]

[Event "Titled Tuesday Blitz January 25 2022"]
[White "Ben Artzi, Ido"]
[Black "Kretov, Evgenij"]
[WhiteFideId "2810913"]
[BlackFideId "4167821"]
[WhiteElo "2244"]
[BlackElo "2303"]
[Result "0-1"]
[Round "07"]
[TimeControl "180+1"]
[Date "2022.01.26"]
[WhiteClock "0:00:03"]
[BlackClock "0:01:03"]

1. d4 {[%clk 0:03:00]}  Nf6 {[%clk 0:02:59]} 2. c4 {[%clk 0:03:00]}  c5 {[%clk 0:03:00]} 3. d5 {[%clk 0:03:00]}  e5 {[%clk 0:03:00]} 4. Nc3 {[%clk 0:02:59]}  d6 {[%clk 0:03:01]} 5. e4 {[%clk 0:02:58]}  Be7 {[%clk 0:03:02]} 6. g3 {[%clk 0:02:58]}  O-O {[%clk 0:03:02]} 7. Bg2 {[%clk 0:02:57]}  Ne8 {[%clk 0:03:03]} 8. Nge2 {[%clk 0:02:57]}  Nd7 {[%clk 0:03:04]} 9. O-O {[%clk 0:02:57]}  g6 {[%clk 0:03:05]} 10. Bh6 {[%clk 0:02:51]}  Ng7 {[%clk 0:03:05]} 11. f4 {[%clk 0:02:51]}  exf4 {[%clk 0:03:03]} 12. gxf4 {[%clk 0:02:48]}  Bf6 {[%clk 0:03:00]} 13. e5 {[%clk 0:02:46]}  dxe5 {[%clk 0:03:00]} 14. Ne4 {[%clk 0:02:46]}  exf4 {[%clk 0:03:00]} 15. Nxf6+ {[%clk 0:02:40]}  Nxf6 {[%clk 0:02:55]} 16. Nxf4 {[%clk 0:02:36]}  Ng4 {[%clk 0:02:52]} 17. Bxg7 {[%clk 0:02:35]}  Kxg7 {[%clk 0:02:53]} 18. Qd2 {[%clk 0:02:29]}  Qd6 {[%clk 0:02:49]} 19. h3 {[%clk 0:02:20]}  Ne5 {[%clk 0:02:49]} 20. Rae1 {[%clk 0:02:17]}  f6 {[%clk 0:02:49]} 21. b4 {[%clk 0:02:08]}  Bd7 {[%clk 0:02:47]} 22. Qf2 {[%clk 0:01:54]}  b6 {[%clk 0:02:42]} 23. Qg3 {[%clk 0:01:52]}  Nxc4 {[%clk 0:02:34]} 24. Nh5+ {[%clk 0:01:26]}  Kh8 {[%clk 0:02:32]} 25. Qxd6 {[%clk 0:01:17]}  Nxd6 {[%clk 0:02:32]} 26. Nxf6 {[%clk 0:00:54]}  Bf5 {[%clk 0:02:31]} 27. bxc5 {[%clk 0:00:35]}  bxc5 {[%clk 0:02:16]} 28. Ng4 {[%clk 0:00:24]}  Rfe8 {[%clk 0:02:10]} 29. Ne5 {[%clk 0:00:20]}  Kg7 {[%clk 0:02:07]} 30. Re3 {[%clk 0:00:19]}  Re7 {[%clk 0:02:04]} 31. Rfe1 {[%clk 0:00:19]}  Rae8 {[%clk 0:02:02]} 32. Kf2 {[%clk 0:00:19]}  Kf6 {[%clk 0:02:01]} 33. Nc6 {[%clk 0:00:14]}  Rxe3 {[%clk 0:02:01]} 34. Rxe3 {[%clk 0:00:15]}  Rxe3 {[%clk 0:02:00]} 35. Kxe3 {[%clk 0:00:16]}  a6 {[%clk 0:01:48]} 36. Bf1 {[%clk 0:00:11]}  Be4 {[%clk 0:01:39]} 37. Bxa6 {[%clk 0:00:04]}  Bxd5 {[%clk 0:01:39]} 38. Nb8 {[%clk 0:00:05]}  Ke7 {[%clk 0:01:21]} 39. a4 {[%clk 0:00:05]}  Kd8 {[%clk 0:01:21]} 40. Bf1 {[%clk 0:00:04]}  Kc7 {[%clk 0:01:21]} 41. Na6+ {[%clk 0:00:04]}  Kb6 {[%clk 0:01:21]} 42. a5+ {[%clk 0:00:05]}  Kc6 {[%clk 0:01:15]} 43. Nb8+ {[%clk 0:00:05]}  Kb7 {[%clk 0:01:12]} 44. Nd7 {[%clk 0:00:05]}  c4 {[%clk 0:01:12]} 45. Nf6 {[%clk 0:00:06]}  Nf5+ {[%clk 0:01:08]} 46. Kf4 {[%clk 0:00:05]}  Bf7 {[%clk 0:01:04]} 47. Nxh7 {[%clk 0:00:04]}  c3 {[%clk 0:01:04]} 48. Bd3 {[%clk 0:00:03]}  Bb3 {[%clk 0:01:03]} 0-1


[Site "https://www.chess.com"]

[Event "Titled Tuesday Blitz January 25 2022"]
[White "Bethke, Richard"]
[Black "Belov, Vladimir"]
[WhiteFideId "12959243"]
[BlackFideId "4132394"]
[WhiteElo "2444"]
[BlackElo "2501"]
[Result "1-0"]
[Round "07"]
[TimeControl "180+1"]
[Date "2022.01.26"]
[WhiteClock "0:00:13"]
[BlackClock "0:00:06"]

1. e4 {[%clk 0:02:35]}  c5 {[%clk 0:02:59]} 2. Nf3 {[%clk 0:02:36]}  d6 {[%clk 0:03:00]} 3. d4 {[%clk 0:02:36]}  cxd4 {[%clk 0:03:00]} 4. Nxd4 {[%clk 0:02:37]}  Nf6 {[%clk 0:03:01]} 5. Nc3 {[%clk 0:02:37]}  a6 {[%clk 0:03:01]} 6. Be3 {[%clk 0:02:35]}  e5 {[%clk 0:02:54]} 7. Nf3 {[%clk 0:02:34]}  Be7 {[%clk 0:02:51]} 8. Bc4 {[%clk 0:02:33]}  O-O {[%clk 0:02:51]} 9. O-O {[%clk 0:02:31]}  Nc6 {[%clk 0:02:52]} 10. Bg5 {[%clk 0:02:25]}  Be6 {[%clk 0:02:45]} 11. Bb3 {[%clk 0:02:21]}  Na5 {[%clk 0:02:35]} 12. Bxf6 {[%clk 0:02:17]}  Bxf6 {[%clk 0:02:35]} 13. Nd2 {[%clk 0:02:17]}  Nxb3 {[%clk 0:02:32]} 14. axb3 {[%clk 0:02:18]}  d5 {[%clk 0:02:28]} 15. exd5 {[%clk 0:02:18]}  Bxd5 {[%clk 0:02:26]} 16. Nde4 {[%clk 0:02:19]}  Bc6 {[%clk 0:02:22]} 17. Qe2 {[%clk 0:02:13]}  Qe7 {[%clk 0:02:03]} 18. Nxf6+ {[%clk 0:02:11]}  Qxf6 {[%clk 0:02:03]} 19. Rfe1 {[%clk 0:02:10]}  Rfe8 {[%clk 0:02:03]} 20. Rad1 {[%clk 0:02:10]}  Qg6 {[%clk 0:01:47]} 21. f3 {[%clk 0:01:57]}  Rac8 {[%clk 0:01:47]} 22. Rd2 {[%clk 0:01:53]}  h5 {[%clk 0:01:45]} 23. Qf2 {[%clk 0:01:49]}  h4 {[%clk 0:01:15]} 24. Rde2 {[%clk 0:01:26]}  f6 {[%clk 0:01:08]} 25. Ne4 {[%clk 0:01:24]}  Red8 {[%clk 0:01:04]} 26. Qxh4 {[%clk 0:01:22]}  Bb5 {[%clk 0:00:54]} 27. Rf2 {[%clk 0:01:17]}  Rd4 {[%clk 0:00:51]} 28. c3 {[%clk 0:01:14]}  Rd3 {[%clk 0:00:50]} 29. Qg3 {[%clk 0:01:06]}  Qxg3 {[%clk 0:00:46]} 30. Nxg3 {[%clk 0:01:07]}  Rcd8 {[%clk 0:00:43]} 31. h4 {[%clk 0:00:59]}  Kf7 {[%clk 0:00:41]} 32. Kh2 {[%clk 0:00:58]}  a5 {[%clk 0:00:40]} 33. Ra1 {[%clk 0:00:56]}  b6 {[%clk 0:00:41]} 34. Ne4 {[%clk 0:00:52]}  Bc6 {[%clk 0:00:40]} 35. Re2 {[%clk 0:00:45]}  Bd5 {[%clk 0:00:27]} 36. Nf2 {[%clk 0:00:38]}  Bxb3 {[%clk 0:00:20]} 37. Nxd3 {[%clk 0:00:38]}  Rxd3 {[%clk 0:00:21]} 38. Rae1 {[%clk 0:00:30]}  Rd6 {[%clk 0:00:17]} 39. f4 {[%clk 0:00:28]}  exf4 {[%clk 0:00:16]} 40. Re7+ {[%clk 0:00:28]}  Kg6 {[%clk 0:00:17]} 41. Rc7 {[%clk 0:00:24]}  Rd2 {[%clk 0:00:16]} 42. Ree7 {[%clk 0:00:23]}  f3 {[%clk 0:00:13]} 43. Rxg7+ {[%clk 0:00:23]}  Kf5 {[%clk 0:00:13]} 44. Rg3 {[%clk 0:00:22]}  Bd5 {[%clk 0:00:09]} 45. Rd7 {[%clk 0:00:15]}  f2 {[%clk 0:00:07]} 46. Rxd5+ {[%clk 0:00:15]}  Rxd5 {[%clk 0:00:07]} 47. Rf3+ {[%clk 0:00:15]}  Kg6 {[%clk 0:00:04]} 48. Rxf2 {[%clk 0:00:16]}  b5 {[%clk 0:00:03]} 49. g4 {[%clk 0:00:17]}  Rd3 {[%clk 0:00:03]} 50. h5+ {[%clk 0:00:17]}  Kg5 {[%clk 0:00:03]} 51. Rg2 {[%clk 0:00:13]}  b4 {[%clk 0:00:03]} 52. cxb4 {[%clk 0:00:13]}  axb4 {[%clk 0:00:04]} 53. Rg3 {[%clk 0:00:07]}  Rd2+ {[%clk 0:00:03]} 54. Kh3 {[%clk 0:00:08]}  Rxb2 {[%clk 0:00:04]} 55. Rf3 {[%clk 0:00:09]}  Rc2 {[%clk 0:00:01]} 56. Rf5+ {[%clk 0:00:10]}  Kh6 {[%clk 0:00:02]} 57. Rxf6+ {[%clk 0:00:10]}  Kg7 {[%clk 0:00:03]} 58. Rb6 {[%clk 0:00:11]}  Rc3+ {[%clk 0:00:03]} 59. Kh4 {[%clk 0:00:12]}  Rc4 {[%clk 0:00:04]} 60. Kg5 {[%clk 0:00:11]}  Rc5+ {[%clk 0:00:04]} 61. Kf4 {[%clk 0:00:12]}  Rc4+ {[%clk 0:00:05]} 62. Kg3 {[%clk 0:00:12]}  Rd4 {[%clk 0:00:04]} 63. g5 {[%clk 0:00:13]}  Rc4 {[%clk 0:00:04]} 64. Rb7+ {[%clk 0:00:12]}  Kg8 {[%clk 0:00:05]} 65. h6 {[%clk 0:00:13]}  Kh8 {[%clk 0:00:05]} 66. g6 {[%clk 0:00:13]}  Rc8 {[%clk 0:00:03]} 67. Rxb4 {[%clk 0:00:12]}  Kg8 {[%clk 0:00:04]} 68. Rb7 {[%clk 0:00:12]}  Rc3+ {[%clk 0:00:04]} 69. Kf4 {[%clk 0:00:12]}  Rc4+ {[%clk 0:00:05]} 70. Ke5 {[%clk 0:00:13]}  Rc5+ {[%clk 0:00:05]} 71. Kd6 {[%clk 0:00:13]}  Rc8 {[%clk 0:00:05]} 72. Rd7 {[%clk 0:00:13]}  Rf8 {[%clk 0:00:05]} 73. Ke7 {[%clk 0:00:13]}  Kh8 {[%clk 0:00:06]} 74. Rd8 {[%clk 0:00:13]} 1-0


[Site "https://www.chess.com"]

[Event "Titled Tuesday Blitz January 25 2022"]
[White "Bortnyk, Olexandr"]
[Black "Weetik, Vjacheslav"]
[WhiteFideId "14120828"]
[BlackFideId "4153472"]
[WhiteElo "2723"]
[BlackElo "2469"]
[Result "1-0"]
[Round "07"]
[TimeControl "180+1"]
[Date "2022.01.26"]
[WhiteClock "0:00:02"]
[BlackClock "0:00:07"]

1. e4 {[%clk 0:02:58]}  c6 {[%clk 0:02:58]} 2. c4 {[%clk 0:02:55]}  e5 {[%clk 0:02:53]} 3. Nf3 {[%clk 0:02:52]}  d6 {[%clk 0:02:52]} 4. d4 {[%clk 0:02:50]}  Nd7 {[%clk 0:02:52]} 5. Nc3 {[%clk 0:02:50]}  Ngf6 {[%clk 0:02:51]} 6. g3 {[%clk 0:02:49]}  Be7 {[%clk 0:02:50]} 7. Bg2 {[%clk 0:02:49]}  O-O {[%clk 0:02:51]} 8. O-O {[%clk 0:02:50]}  a6 {[%clk 0:02:51]} 9. Re1 {[%clk 0:02:34]}  b5 {[%clk 0:02:46]} 10. c5 {[%clk 0:02:34]}  Bb7 {[%clk 0:02:15]} 11. cxd6 {[%clk 0:02:05]}  Bxd6 {[%clk 0:02:16]} 12. dxe5 {[%clk 0:02:00]}  Nxe5 {[%clk 0:02:16]} 13. Nxe5 {[%clk 0:02:00]}  Bxe5 {[%clk 0:02:16]} 14. Be3 {[%clk 0:02:01]}  Qe7 {[%clk 0:02:03]} 15. Qc2 {[%clk 0:01:27]}  Rac8 {[%clk 0:01:29]} 16. Rad1 {[%clk 0:01:02]}  c5 {[%clk 0:01:26]} 17. Bg5 {[%clk 0:00:28]}  h6 {[%clk 0:01:18]} 18. Nd5 {[%clk 0:00:10]}  Bxd5 {[%clk 0:01:17]} 19. Bxf6 {[%clk 0:00:11]}  Qxf6 {[%clk 0:01:16]} 20. Rxd5 {[%clk 0:00:12]}  Bd4 {[%clk 0:00:46]} 21. e5 {[%clk 0:00:10]}  Qe6 {[%clk 0:00:40]} 22. Rd6 {[%clk 0:00:08]}  Qxa2 {[%clk 0:00:40]} 23. Re2 {[%clk 0:00:02]}  Rce8 {[%clk 0:00:33]} 24. Bd5 {[%clk 0:00:03]}  Qa4 {[%clk 0:00:23]} 25. Qxa4 {[%clk 0:00:03]}  bxa4 {[%clk 0:00:24]} 26. e6 {[%clk 0:00:02]}  fxe6 {[%clk 0:00:23]} 27. Bxe6+ {[%clk 0:00:03]}  Kh8 {[%clk 0:00:22]} 28. Rxa6 {[%clk 0:00:03]}  Rxf2 {[%clk 0:00:17]} 29. Rxf2 {[%clk 0:00:03]}  Rf8 {[%clk 0:00:17]} 30. Rxa4 {[%clk 0:00:02]}  Bxf2+ {[%clk 0:00:16]} 31. Kg2 {[%clk 0:00:03]}  Bd4 {[%clk 0:00:16]} 32. b3 {[%clk 0:00:04]}  Rf2+ {[%clk 0:00:14]} 33. Kh3 {[%clk 0:00:04]}  g6 {[%clk 0:00:13]} 34. Ra8+ {[%clk 0:00:04]}  Kg7 {[%clk 0:00:14]} 35. Bd5 {[%clk 0:00:03]}  h5 {[%clk 0:00:11]} 36. g4 {[%clk 0:00:03]}  Be5 {[%clk 0:00:10]} 37. gxh5 {[%clk 0:00:02]}  gxh5 {[%clk 0:00:08]} 38. Rg8+ {[%clk 0:00:02]}  Kf6 {[%clk 0:00:07]} 39. Rf8+ {[%clk 0:00:02]} 1-0


[Site "https://www.chess.com"]

[Event "Titled Tuesday Blitz January 25 2022"]
[White "Chernomordik, Pavel"]
[Black "Korchmar, Vasiliy"]
[WhiteFideId "2804530"]
[BlackFideId "24131750"]
[WhiteElo "2249"]
[BlackElo "2370"]
[Result "1/2-1/2"]
[Round "07"]
[TimeControl "180+1"]
[Date "2022.01.26"]
[WhiteClock "0:00:41"]
[BlackClock "0:00:05"]

1. e4 {[%clk 0:03:00]}  c5 {[%clk 0:02:59]} 2. Nc3 {[%clk 0:03:00]}  d6 {[%clk 0:02:59]} 3. f4 {[%clk 0:03:00]}  Nc6 {[%clk 0:02:58]} 4. Nf3 {[%clk 0:03:00]}  e6 {[%clk 0:02:57]} 5. g3 {[%clk 0:02:57]}  Nf6 {[%clk 0:02:54]} 6. Bg2 {[%clk 0:02:56]}  Be7 {[%clk 0:02:55]} 7. Ke2 {[%clk 0:02:55]}  O-O {[%clk 0:02:54]} 8. Re1 {[%clk 0:02:54]}  b5 {[%clk 0:02:49]} 9. Kf1 {[%clk 0:02:53]}  b4 {[%clk 0:02:49]} 10. Nb1 {[%clk 0:02:52]}  a5 {[%clk 0:02:44]} 11. d3 {[%clk 0:02:51]}  a4 {[%clk 0:02:44]} 12. Kg1 {[%clk 0:02:49]}  Bb7 {[%clk 0:02:39]} 13. h3 {[%clk 0:02:49]}  Nd7 {[%clk 0:02:37]} 14. Nbd2 {[%clk 0:02:45]}  Bf6 {[%clk 0:02:37]} 15. Rb1 {[%clk 0:02:37]}  Qc7 {[%clk 0:02:30]} 16. g4 {[%clk 0:02:35]}  g6 {[%clk 0:02:29]} 17. Nf1 {[%clk 0:02:31]}  Rfc8 {[%clk 0:02:19]} 18. Ng3 {[%clk 0:02:26]}  Nd4 {[%clk 0:02:16]} 19. g5 {[%clk 0:02:22]}  Bg7 {[%clk 0:02:15]} 20. f5 {[%clk 0:02:15]}  Nxf3+ {[%clk 0:02:10]} 21. Qxf3 {[%clk 0:02:13]}  exf5 {[%clk 0:02:09]} 22. Bf4 {[%clk 0:02:06]}  a3 {[%clk 0:02:03]} 23. b3 {[%clk 0:02:05]}  Bd4+ {[%clk 0:01:40]} 24. Kh1 {[%clk 0:01:59]}  Ne5 {[%clk 0:01:41]} 25. Qe2 {[%clk 0:01:53]}  fxe4 {[%clk 0:01:37]} 26. Nxe4 {[%clk 0:01:48]}  Bxe4 {[%clk 0:01:29]} 27. Bxe4 {[%clk 0:01:46]}  Rab8 {[%clk 0:01:29]} 28. Bd5 {[%clk 0:01:46]}  Re8 {[%clk 0:01:26]} 29. Rf1 {[%clk 0:01:44]}  Re7 {[%clk 0:01:25]} 30. Qg2 {[%clk 0:01:36]}  Rbe8 {[%clk 0:01:25]} 31. h4 {[%clk 0:01:34]}  Qd7 {[%clk 0:01:21]} 32. Bxe5 {[%clk 0:01:27]}  Rxe5 {[%clk 0:01:07]} 33. Bxf7+ {[%clk 0:01:24]}  Qxf7 {[%clk 0:01:03]} 34. Rxf7 {[%clk 0:01:24]}  Kxf7 {[%clk 0:01:04]} 35. Rf1+ {[%clk 0:01:21]}  Kg8 {[%clk 0:01:04]} 36. Qf3 {[%clk 0:01:13]}  Rf5 {[%clk 0:01:01]} 37. Qg2 {[%clk 0:01:13]}  Rxf1+ {[%clk 0:00:26]} 38. Qxf1 {[%clk 0:01:12]}  Kg7 {[%clk 0:00:16]} 39. Qf3 {[%clk 0:01:00]}  Rf8 {[%clk 0:00:11]} 40. Qd5 {[%clk 0:00:57]}  Be5 {[%clk 0:00:11]} 41. Kg2 {[%clk 0:00:56]}  Rf7 {[%clk 0:00:08]} 42. Qe6 {[%clk 0:00:50]}  Rf4 {[%clk 0:00:05]} 43. Qe7+ {[%clk 0:00:46]}  Rf7 {[%clk 0:00:05]} 44. Qe6 {[%clk 0:00:45]}  Kf8 {[%clk 0:00:05]} 45. Qc8+ {[%clk 0:00:42]}  Kg7 {[%clk 0:00:05]} 46. Qe6 {[%clk 0:00:41]} 1/2-1/2


[Site "https://www.chess.com"]

[Event "Titled Tuesday Blitz January 25 2022"]
[White "Costachi, Mihnea"]
[Black "Weishaeutel, Moritz"]
[WhiteFideId "1217518"]
[BlackFideId "12967300"]
[WhiteElo "2464"]
[BlackElo "2002"]
[Result "1-0"]
[Round "07"]
[TimeControl "180+1"]
[Date "2022.01.26"]
[WhiteClock "0:02:14"]
[BlackClock "0:01:04"]

1. e4 {[%clk 0:03:00]}  e6 {[%clk 0:02:58]} 2. Qe2 {[%clk 0:03:00]}  d5 {[%clk 0:02:59]} 3. exd5 {[%clk 0:03:00]}  Qxd5 {[%clk 0:02:58]} 4. Nc3 {[%clk 0:03:00]}  Qd8 {[%clk 0:02:58]} 5. Nf3 {[%clk 0:02:59]}  Nf6 {[%clk 0:02:56]} 6. d4 {[%clk 0:02:59]}  Be7 {[%clk 0:02:51]} 7. Bg5 {[%clk 0:02:58]}  O-O {[%clk 0:02:51]} 8. O-O-O {[%clk 0:02:58]}  b6 {[%clk 0:02:43]} 9. Bxf6 {[%clk 0:02:47]}  Bxf6 {[%clk 0:02:44]} 10. Qe4 {[%clk 0:02:47]}  c6 {[%clk 0:02:43]} 11. Bd3 {[%clk 0:02:48]}  g6 {[%clk 0:02:43]} 12. h4 {[%clk 0:02:49]}  h5 {[%clk 0:01:47]} 13. g4 {[%clk 0:02:47]}  hxg4 {[%clk 0:01:48]} 14. h5 {[%clk 0:02:47]}  e5 {[%clk 0:01:49]} 15. hxg6 {[%clk 0:02:44]}  gxf3 {[%clk 0:01:42]} 16. g7 {[%clk 0:02:37]}  Bg5+ {[%clk 0:01:36]} 17. Kb1 {[%clk 0:02:37]}  Kxg7 {[%clk 0:01:37]} 18. Rh7+ {[%clk 0:02:31]}  Kg8 {[%clk 0:01:34]} 19. Rdh1 {[%clk 0:02:20]}  f5 {[%clk 0:01:18]} 20. Bc4+ {[%clk 0:02:17]}  Rf7 {[%clk 0:01:10]} 21. Rxf7 {[%clk 0:02:13]}  fxe4 {[%clk 0:01:09]} 22. Rd7+ {[%clk 0:02:13]}  Kf8 {[%clk 0:01:04]} 23. Rh8# {[%clk 0:02:14]} 1-0


[Site "https://www.chess.com"]